Cogmind - Beta 15 @@@ ROGUE MODE // 2025.09.15 @ 19:45:05 Player: Crafthog Result: Destroyed by FJ-P1W(R) with Subdweller Machine Gun Performance ------------- Evolutions (0) 0 Regions Visited (2) 400 Robots Destroyed (21) 105 Value Destroyed (492) 492 Prototype IDs (0) 0 Alien Tech Used (0) 0 Bonus (0) 0 TOTAL SCORE: 997 Bonus ------- None Cogmind --------- Core Integrity 0/250 Matter 238/300 Energy 100/100 System Corruption 0% Temperature Cool (0) Movement Core (450) Ox8 Location -10/Subcaves Parts ------- > --- POWER (1) -------- (None) > --- PROPULSION (2) --- (None) > --- UTILITY (2) ------ Small Storage Unit Large Storage Unit > --- WEAPON (2) ------- (None) > --- INVENTORY (15) --- Aluminum Leg Improved Heat Sink Hacking Suite Grenade Launcher Peak State ------------ > --- POWER ------------ Light Ion Engine > --- PROPULSION ------- Light Treads Light Treads > --- UTILITY ---------- Small Storage Unit Seismic Detector > --- WEAPON ----------- EM Pulse Gun Assault Rifle > --- INVENTORY -------- Light Ion Engine [Rating: 7] Favorites ----------- Power Light Ion Engine Engine Light Ion Engine Propulsion Light Treads Treads Light Treads Utility Large Storage Unit Device Seismic Detector Storage Large Storage Unit Weapon Light Cannon Energy Gun EM Pulse Gun Ballistic Gun Light Assault Rifle Ballistic Cannon Light Cannon Launcher Grenade Launcher Build | -11 -10 -10 ------- Run | Yrd Mat Sub Slots Evolved . | . . . Power . | . . . Propulsion . | . . . Utility . | . . . Weapon . | . . . Parts Attached 13 | 7 6 . Power 2 | 1 1 . Engine 2 | 1 1 . Core . | . . . Reactor . | . . . Propulsion 3 | 2 1 . Treads 3 | 2 1 . Leg . | . . . Wheel . | . . . Hover . | . . . Flight . | . . . Utility 3 | 2 1 . Device 1 | 1 . . Storage 2 | 1 1 . Processor . | . . . Hackware . | . . . Protection . | . . . Artifact . | . . . Weapon 5 | 2 3 . Energy Gun 1 | 1 . . Energy Cannon . | . . . Ballistic Gun 2 | 1 1 . Ballistic Cannon 1 | . 1 . Launcher 1 | . 1 . Special Weapon . | . . . Impact Weapon . | . . . Slashing Weapon . | . . . Piercing Weapon . | . . . Special Melee Weapon . | . . . Unidentified Prototypes . | . . . Parts Lost 8 | . 3 5 Power 2 | . 1 1 Propulsion 3 | . 1 2 Utility 1 | . 1 . Weapon 2 | . . 2 Highest Loss Streak 3 | . 1 3 To Critical Strikes . | . . . Average Backups 2 | . 2 4 Power . | . . . Propulsion . | . . 1 Utility 1 | . . 2 Weapon . | . . 1 Tool/Special . | . . . Unused Backups 3 | . . 3 Power . | . . . Propulsion 1 | . . 1 Utility 2 | . . 2 Weapon . | . . . Tool/Special . | . . . Average Slot Usage (%) 88 | . 88 91 Engine 12 | . 13 11 Treads 25 | . 25 24 Device 2 | . 3 . Storage 24 | . 23 28 Energy Gun 1 | . 1 . Ballistic Gun 8 | . 7 13 Ballistic Cannon 10 | . 9 13 Launcher 1 | . 2 . Peak Build Rating 7 | 7 7 7 Average Rating 6 | 4 6 6 On Entrance 4 | . 7 7 Naked Turns . | . . . Heaviest Build 32 | 13 32 32 Greatest Support 40 | 40 40 40 Greatest Overweight (x) 1 | . 1 1 Average Overweight (x) . | . . . Largest Inventory Capacity 15 | 8 15 15 Average Capacity 13 | 7 14 15 Most Carried 5 | 2 5 4 Average Carried 2 | . 2 4 Final Capacity 15 | 8 15 15 Final Carried 4 | 1 4 4 Class Distribution -------------------- 100% | Mutant Dominant Class ---------------- Mutant | -10/Materials Mutant | -10/Subcaves Resources | -11 -10 -10 ----------- Run | Yrd Mat Sub Matter Collected 530 | 71 459 . Remotely . | . . . Salvage Created 433 | 19 414 . Parts 35 | 5 30 . Haulers Intercepted . | . . . Recyclers Shooed . | . . . Parts Field Recycled . | . . . Retrieved Matter . | . . . Parts Self-Destructed . | . . . Prevented . | . . . Kills | -11 -10 -10 ------- Run | Yrd Mat Sub Combat Hostiles Destroyed 14 | . 14 . Melee 1 | . 1 . Guns 1 | . 1 . Cannons 9 | . 9 . AOE 3 | . 3 . Classes Destroyed 7 | 1 6 . Builder 2 | . 2 . Tunneler 2 | 1 1 . Recycler 1 | . 1 . Operator 1 | . 1 . Watcher 1 | . 1 . Swarmer 3 | . 3 . Grunt 11 | . 11 . Best Kill Streak 4 | 1 4 . Combat Bots Only 4 | . 4 . Max Kills in Single Turn 3 | 1 3 . Gunslinging . | . . . Exploded 2 | . 2 . Melee 1 | . 1 . Uniques/NPCs Destroyed . | . . . Combat | -11 -10 -10 -------- Run | Yrd Mat Sub Hostile Shots Fired 120 | . 86 34 Missed 34 | . 28 6 Hits 86 | . 58 28 Projectile 86 | . 58 28 Damage Taken 1261 | . 675 586 Core 261 | . 94 167 Absorbed by Shields . | . . . Core Remaining (%) 100 | 100 . . Volleys Fired 58 | 3 55 . Largest 2 | 2 2 . Hottest 60 | 60 60 . Shots Fired 81 | 6 75 . Gun 27 | 6 21 . Cannon 45 | . 45 . Launcher 9 | . 9 . Special . | . . . Kinetic 68 | 3 65 . Thermal . | . . . Explosive 9 | . 9 . Electromagnetic 4 | 3 1 . Robot Hit Streak 6 | 2 6 . Robot Miss Streak 5 | 1 5 . Penetration Max . | . . . Secondary Targets . | . . . Shots Hit Robots 48 | 4 44 . Core Hits 31 | 1 30 . Critical Kills . | . . . Critical Parts Destroyed . | . . . Critical Strikes 1 | . 1 . Blast 1 | . 1 . Melee Attacks . | . . . Impact . | . . . Slashing . | . . . Piercing . | . . . Sneak Attacks . | . . . Combat Hostiles . | . . . Follow-up Attacks . | . . . Damage Inflicted 1187 | 53 1134 . Guns 156 | 53 103 . Cannons 523 | . 523 . Explosions 490 | . 490 . Melee . | . . . Ramming 18 | . 18 . Kinetic 666 | 40 626 . Thermal . | . . . Explosive 490 | . 490 . Electromagnetic 13 | 13 . . Impact . | . . . Slashing . | . . . Piercing . | . . . Highest Corruption . | . . . Average Corruption . | . . . Corruption Purged . | . . . Corruption Blocked . | . . . Overload Shots . | . . . Overflow Damage 19 | . 19 . Projectiles 15 | . 15 . Explosions 4 | . 4 . Melee . | . . . Knockbacks 6 | . 6 . Impact . | . . . Kinetic 6 | . 6 . Secondary . | . . . Self-Inflicted Damage 54 | . 54 . Shots 3 | . 3 . Rammed 3 | . 3 . Targets Rammed 5 | . 5 . Kicked . | . . . Crushed 2 | . 2 . Highest Temperature 26 | . 26 . Average Temperature 8 | . 8 . Received Heat Transfer 312 | . 264 48 Siege Activations . | . . . Martial Activations . | . . . Shielding Activations . | . . . Robots Disrupted . | . . . Combat Hostiles . | . . . Robots Corrupted . | . . . Combat Hostiles . | . . . Parts Fried . | . . . Impact Corruptions . | . . . Robots Melted . | . . . Combat Hostiles . | . . . Parts Melted . | . . . Heat Transferred . | . . . Parts Sabotaged . | . . . Parts Stolen . | . . . Parts Stripped . | . . . Power Chain Reactions . | . . . Alert | -11 -10 -10 ------- Run | Yrd Mat Sub Maximum Alert Level . | . . . Low Security (%) 100 | 100 100 . Level 1 . | . . . Level 2 . | . . . Level 3 . | . . . Level 4 . | . . . Level 5 . | . . . High Security . | . . . Max Security . | . . . Peak Influence 177 | 5 177 . Initial . | . . . Average 74 | . 83 . Influence Increases 450 | 5 445 . Destroy 0b10 Robot/C 280 | . 280 . Destroy 0b10 Robot/NC 35 | 5 30 . Destroy Leader 72 | . 72 . Destroy Structure 33 | . 33 . Lose Combat Pursuer 30 | . 30 . Influence Decreases 450 | 5 319 126 Entered New Map 62 | . . 62 Time Decay 368 | 5 299 64 Lost Part 20 | . 20 . Squads Dispatched 4 | . 4 . Investigation 1 | . 1 . Extermination . | . . . Reinforcement 3 | . 3 . Assault . | . . . Garrison . | . . . Intercept . | . . . Searches Triggered . | . . . Construction Impeded . | . . . Haulers Reinforced . | . . . Active Scanning Responses . | . . . Cargo Convoy Interrupts . | . . . Stealth | -11 -10 -10 --------- Run | Yrd Mat Sub Distress Signals 2 | . 2 . Communications Jammed . | . . . Distress Signals . | . . . Times Spotted 29 | . 26 3 Peak Tracking Total 4 | . 4 3 Tactical Retreats 2 | . 2 . Traps | -11 -10 -10 ------- Run | Yrd Mat Sub Traps Triggered 2 | . 2 . Indirectly . | . . . Trap Hack Attempts . | . . . Triggered . | . . . Disarmed . | . . . Reprogrammed . | . . . Reused . | . . . Traps Extracted . | . . . Installed . | . . . Triggered . | . . . Machines | -11 -10 -10 ---------- Run | Yrd Mat Sub Machines Disabled . | . . . Max in Single Turn . | . . . Machines Repaired . | . . . Machines Dismantled . | . . . Machines Sabotaged . | . . . Overloaded Fab Kills . | . . . Hacking | -11 -10 -10 --------- Run | Yrd Mat Sub Machines Accessed . | . . . Terminals . | . . . Fabricators . | . . . Repair Stations . | . . . Recycling Units . | . . . Scanalyzers . | . . . Garrison Access . | . . . Total Hacks . | . . . Successful . | . . . Failed . | . . . Catastrophic . | . . . Database Lockouts . | . . . Manual . | . . . Terminals . | . . . Fabricators . | . . . Repair Stations . | . . . Recycling Units . | . . . Scanalyzers . | . . . Garrison Access . | . . . Terminal Hacks . | . . . Fabricator Hacks . | . . . Repair Station Hacks . | . . . Recycling Unit Hacks . | . . . Scanalyzer . | . . . Garrison Access Hacks . | . . . Unauthorized Hacks . | . . . Terminals . | . . . Fabricators . | . . . Repair Stations . | . . . Recycling Units . | . . . Scanalyzers . | . . . Garrison Access . | . . . Data Cores Recovered . | . . . Used . | . . . Hacking Detections . | . . . Full Trace Events . | . . . Feedback Events . | . . . Feedback Blocked . | . . . Robot Schematics Acquired . | . . . Robots Built . | . . . Authchips . | . . . Time . | . . . Total Robot Build Rating . | . . . Part Schematics Acquired . | . . . Parts Built . | . . . Authchips . | . . . Time . | . . . Total Part Build Rating . | . . . Parts Repaired . | . . . Time . | . . . Parts Recycled . | . . . Recycled Matter . | . . . Retrieved Matter . | . . . Retrieved Components . | . . . Parts Scanalyzed . | . . . Part Schematics Acquired . | . . . Parts Damaged . | . . . Bothacking | -11 -10 -10 ------------ Run | Yrd Mat Sub Used RIF Installer . | . . . Robots Hacked . | . . . Non-combat . | . . . Combat . | . . . Robot Hacks Applied . | . . . Relay Couplers Released . | . . . Fabnet Peak Effective % . | . . . Robots Rewired . | . . . Allies Hacked . | . . . Hacks Repelled . | . . . Allies | -11 -10 -10 -------- Run | Yrd Mat Sub Total Allies . | . . . Largest Group . | . . . Highest-Rated Group . | . . . Highest-Rated Ally . | . . . Total Orders . | . . . Ally Attacks . | . . . Total Damage . | . . . Kills . | . . . Allies Corrupted . | . . . Allies Melted . | . . . Intel | -11 -10 -10 ------- Run | Yrd Mat Sub Active Infowar (turns) 195 | 9 186 . Seismic 195 | 9 186 . Robot Analysis Total . | . . . Derelict Logs Recovered 1 | . . 1 Drone Launches . | . . . Drone Recoveries . | . . . Exploration | -11 -10 -10 ------------- Run | Yrd Mat Sub Turns Passed 1130 | 86 763 281 Spaces Moved 545 | 42 348 155 Core 4 | 4 . . Treads 541 | 38 348 155 Legs . | . . . Wheels . | . . . Hover . | . . . Flight . | . . . Fastest Speed 50 | 50 160 160 Average Speed 169 | 149 170 170 Slowest Speed 240 | 160 240 240 Overloaded Moves . | . . . Propulsion Burnouts . | . . . Robots Hopped . | . . . Potential Cave-ins . | . . . Cave-ins Triggered . | . . . Exploration Rate (%) 19 | 4 33 20 Regions Visited 2 Branch Regions 1 Pre-discovered Areas 1 | . . 1 Known Exits Taken . | . . . Unknown Exits Taken 2 | 1 1 . Scrap Searched . | . . . Spaces Dug . | . . . Terrain Destroyed 30 | . 30 . Melee . | . . . Projectile . | . . . AOE 30 | . 30 . Terrain Rammed . | . . . Walls Destroyed . | . . . Machines Disabled . | . . . Actions | -11 -10 -10 --------- Run | Yrd Mat Sub Total 673 | 59 443 171 Wait 36 | . 20 16 Move 543 | 41 347 155 Hop . | . . . Pick Up 16 | 8 8 . Fast Attach . | . . . Attach 13 | 7 6 . Detach 1 | . 1 . Swap 1 | . 1 . Drop . | . . . Fire 58 | 3 55 . Melee . | . . . Ram . | . . . Kick . | . . . Crush 5 | . 5 . Escape Stasis . | . . . Rewire . | . . . Trap . | . . . Miscellaneous . | . . . Route ------- -11/Scrapyard -10/Materials (discovered 3 exits: [*Min x2] / [*Sub]) -10/Subcaves History --------- Turn | Location | Event 11 | -11/Scrapyard | Discovered new exit (range 16) 87 | -11/Scrapyard | Entered Materials 87 | -10/Materials | Discovered new exit (range 14) 195 | -10/Materials | Discovered new exit (range 15) 236 | -10/Materials | Discovered new exit (range 15) 303 | -10/Materials | Build established: Mutant 850 | -10/Materials | Entered Subcaves 851 | -10/Subcaves | Approached by a straggling Scientist 854 | -10/Subcaves | Learned 2 Materials zone layouts 1040 | -10/Subcaves | Learned location of Zion (-6) 1040 | -10/Subcaves | Met a Zionite searching for "candidates" 1060 | -10/Subcaves | A Subdweller sparked back to life 1060 | -10/Subcaves | A Subdweller sparked back to life 1060 | -10/Subcaves | A Subdweller sparked back to life 1106 | -10/Subcaves | Core integrity fell below 50% 1120 | -10/Subcaves | Core integrity fell below 20% 1131 | -10/Subcaves | Destroyed by FJ-P1W(R) with Subdweller Machine Gun Last Messages --------------- Acquired derelict log, extracted data. Data stored: Materials zone layouts (x2). RW-1HI(c): "I think it's somewhere southwest of here" DA-PRW(z): "She is not going to be happy we haven't found any suitable candidates yet." DA-PRW(z): "Hey you! It's really dangerous down here, I feel that you could die at any moment. For your health and safety might I suggest a trip to Zion?" World map updated: -6/Zion. RW-1HI(c): "I think it's somewhere west of here" K5-UAT(R) creaks and sparks as it begins to move. N3-98E(R) creaks and sparks as it begins to move. FJ-P1W(R) creaks and sparks as it begins to move. Lgt. Treads destroyed. Lgt. Ion Engine destroyed. 28-VV1(z) destroyed. RW-1HI(c): "I think it's somewhere west of here" Lgt. Assault Rifle destroyed. Lgt. Cannon destroyed. Lgt. Treads destroyed. Map ----- +----------------------------------------------------+ | ??## #?????????????????????????????????? | | ### #?????????????????????????????????? | | #?????????????????????????????????? | | ##?????????????????????????????????? | | ###????????????????????????????????? | | ### #??????????????????????????????? | | ???# ## #??????????????????????????????? | | ##????# ## #??????????????????????????????? | | ?????## ## #??????????????????????????????? | | ????## ### #?????????????????????????????? | | ????# #? ????????????????????????????? | | ????### #? ???????????????????????????? | | ###### ##?## ??????##? #????????????????? | | ## #??? #####??#??? ## #????????????????? | | ?# # # #??? ##????? ### #????????????????? | | # ##??? #???? #####????????????? | | # #???????? ???? ???????????? | | ######?????? ???? ???????????? | | #" & #?????# ???? ??????????? | | # " "#???### ????? ???????????? | | # " #???# ????? ?????????????? | | # "#??## ?????# c #??????????????? | | #& #??# #????## #??????????????? | | # # ####??# ###### ???????????????? | | #### ##???## R #????????????????????? | | ???## #???# R @ #????????????????????? | | ???# #???# ## #????????????????????? | | ??# ##???#### ## #????????????????????? | | # ####??## ####### ###????????????????????? | | #?## #?????###??????????????????????? | | ### ##??????????????????????????????? | | ##???????????????????????????????? | | #????????????????????????????????? | | ## #????????????????????????????????? | | ### ##????????????????????????????????? | | #?# #?????????????????????????????????? | | ? #?????????????????????????????????? | | # #?????????????????????????????????? | | ## ##?????????????????????????????????? | | ?# #??????????????????????????????????? | | ?## ##??????????????????????????????????? | | ??## ????????????????????????????????????? | | ???# ????????????????????????????????????? | | ???# ????????????????????????????????????? | | ????? ### ????????????????????????????????????? | | ???????#??# ????????????????????????????????????? | | ??????????# ????????????????????????????????????? | | ???????????# ????????????????????????????????????? | | ?????????????????????????????????????????????????? | | ?????????????????????????????????????????????????? | +----------------------------------------------------+ Best States ------------- Heat Dissipation 25 Energy Generation 10 Energy Capacity 125 Matter Stores 238 Matter Capacity 300 Sight Range 16 Terrain Scan Density 10 Evasion (%) 40 Recoil Reduction 2 Item Schematics ----------------- None Robot Schematics ------------------ None Fabricated ------------ Nothing Repaired ---------- Nothing Alien Tech Used ----------------- None Achievements -------------- None Challenges ------------ None Game ------ Seed StormArcStripper Manual? 0 Play Time 00:11:44 Cumulative 7.4 hours Start 2025.09.15 @ 19:32:06 End 2025.09.15 @ 19:45:05 Sessions 1 Manual Loads 0 Difficulty Rogue Special Mode None Game No. 18 Rogue 18 Adventurer 0 Explorer 0 Win Type - Total 0 Types 0/0/0/0/0/0/0/0/0/0 Lore% 9 Gallery% 9 Achievement% 13 Wizard Run 0 Options --------- Layout 1 ASCII 0 Keyboard 0 Movement Mouse Keybinds 0 Fullscreen 1 Font 24/Smallcaps Map View 76x35 Zoom Use 0% Tactical HUD 0 Map Filters NONE Filters NONE Steam 1 RUN: 9e39561a-1cae-48d7-88b4-97d7a7c305f2